bitfinex/quotes_ETHUSD_20241215
["timestamp","ask_amount","ask_price","bid_price","bid_amount"]
[1734280886419,1.33988192,3916.5,3916.1,0.87421053]
[1734280886666,1.33988192,3916.5,3915.8,1.05713132]
[1734280886825,1.33988192,3916.5,3915.9,0.87429778]
[1734280887025,1.33988192,3916.5,3916.0,0.87429778]
[1734280887221,1.33988192,3916.5,3915.8,1.05713132]
[1734280887557,1.33988192,3916.5,3915.9,2.1857082]
[1734280887764,1.33988192,3916.5,3916.0,2.1857082]
[1734280888065,1.33988192,3916.5,3916.1,0.87428328]
[1734280888265,1.33988192,3916.5,3915.8,1.05713132]
[1734280888471,1.33988192,3916.5,3915.9,2.18583268]
[1734280888765,1.33988192,3916.5,3916.0,2.18583268]
[1734280888964,1.72918111,3916.5,3915.7,1.05713132]
[1734280889135,2.55336,3916.4,3915.8,0.87440529]
[1734280889324,0.8247,3916.3,3915.5,1.05713132]
[1734280889524,0.8247,3916.3,3915.6,0.87453299]
[1734280889849,0.8247,3916.3,3915.7,2.18633247]
[1734280890051,0.8247,3916.3,3915.5,1.05713132]
[1734280890365,0.8247,3916.3,3915.6,0.87455072]
[1734280890548,0.8247,3916.3,3915.7,2.18634528]
[1734280890751,0.8247,3916.3,3915.5,1.05713132]
[1734280891072,2.55351,3916.2,3915.6,0.87455628]
[1734280891269,0.51301955,3915.8,3915.4,1.05713132]
[1734280891567,0.51301955,3915.8,3915.3,0.2504]
[1734280891762,0.51301955,3915.8,3915.4,0.87479118]
[1734280891763,0.8247,3915.7,3915.4,0.87479118]
[1734280891963,0.8247,3915.7,3915.3,0.2504]
[1734280892367,0.8247,3915.7,3915.4,0.87474298]
[1734280895789,0.8247,3915.7,3915.3,0.2504]
[1734280896804,0.8247,3915.7,3915.4,0.87476123]
[1734280898503,0.8247,3915.7,3915.3,0.2504]
[1734280898835,0.8247,3915.7,3915.4,0.87484686]
[1734280900500,0.8247,3915.7,3915.5,0.87484686]
[1734280900843,0.8247,3915.7,3915.3,1.30753132]
[1734280901144,0.8247,3915.7,3915.4,2.18730158]
[1734280901341,0.8247,3915.7,3915.5,0.87492063]
[1734280901500,0.8247,3915.7,3915.3,1.30753132]
[1734280901842,2.55395,3915.5,3915.3,0.2504]
[1734280902011,0.8247,3915.7,3915.3,0.2504]
[1734280902500,0.51301955,3915.8,3915.3,0.2504]
[1734280904536,0.51301955,3915.8,3915.4,0.87522376]
[1734280905481,0.51301955,3915.8,3915.3,0.2504]
[1734280905681,0.51301955,3915.8,3915.4,0.8751808]
[1734280906345,0.51301955,3915.8,3915.5,1.09345201]
[1734280906688,0.51301955,3915.8,3915.6,0.87505938]
[1734280907587,0.51301955,3915.8,3915.5,0.21827121]
[1734280907739,0.51301955,3915.8,3915.6,0.87498913]
[1734280908683,0.51301955,3915.8,3915.5,0.21827121]
[1734280908860,0.51301955,3915.8,3915.6,0.87499638]
[1734280909585,0.51301955,3915.8,3915.5,0.21827121]
[1734280910467,0.51301955,3915.8,3915.3,1.30753132]
[1734280910656,0.7871,3915.7,3915.4,0.87512308]
[1734280911497,0.78402615,3915.7,3915.4,0.87512308]
[1734280911791,3.33784615,3915.7,3915.3,0.2504]
[1734280912841,0.78402615,3915.7,3915.3,0.2504]
[1734280913086,2.554,3915.5,3915.3,0.2504]
[1734280913783,2.55401,3915.4,3915.3,0.2504]
[1734280914244,3.34111,3915.4,3915.3,0.2504]
[1734280914669,6.34111,3915.4,3915.3,0.2504]
[1734280915283,6.34111,3915.4,3913.9,1.05713132]
[1734280915284,2.55461,3914.5,3913.9,1.05713132]
[1734280915493,1.077761,3914.4,3914.0,0.87563662]
[1734280915683,3.632451,3914.4,3913.7,1.05713132]
[1734280915891,3.632451,3914.4,3913.8,0.87526385]
[1734280916041,3.632451,3914.4,3913.9,1.31289578]
[1734280916240,3.632451,3914.4,3913.7,1.05713132]
[1734280916445,3.632451,3914.4,3913.8,0.87530208]
[1734280916822,3.632451,3914.4,3913.6,1.31295312]
[1734280916823,3.632451,3914.4,3913.9,0.87530208]
[1734280916978,3.632451,3914.4,3913.6,1.05713132]
[1734280917322,3.632451,3914.4,3913.6,3.2446448]
[1734280917484,2.55476,3914.3,3913.7,0.87500539]
[1734280917682,0.516306,3914.0,3913.5,1.05713132]
[1734280917884,0.516306,3914.0,3913.5,3.26949738]
[1734280918072,0.516306,3914.0,3913.6,2.18681482]
[1734280918266,0.8223,3914.4,3913.7,2.18677945]
[1734280918466,0.8223,3914.4,3913.8,0.87472593]
[1734280918682,0.5071823,3913.9,3913.8,0.19318573]
[1734280918876,0.5071823,3913.9,3913.8,2.37910792]
[1734280919205,0.5071823,3913.9,3913.8,1.06753729]
[1734280919566,0.5071823,3913.9,3913.8,0.19318573]
[1734280919966,0.5071823,3913.9,3913.3,4.05713132]
[1734280920167,0.5071823,3913.9,3913.4,2.18587358]
[1734280920641,0.5071823,3913.9,3913.5,5.18618596]
[1734280920815,0.5071823,3913.9,3913.7,0.8009]
[1734280921044,0.8223,3914.7,3913.8,0.87442746]
[1734280921315,0.8223,3914.7,3913.8,1.92556735]
[1734280921515,0.8223,3914.7,3913.8,1.05113989]
[1734280921715,0.51443871,3914.1,3913.8,1.05113989]
[1734280922124,0.51443871,3914.1,3913.5,3.0]
[1734280922456,0.51443871,3914.1,3913.1,3.78254479]
[1734280922457,0.8223,3914.0,3913.2,3.0]
[1734280922755,0.8223,3914.0,3913.0,2.38525315]
[1734280922756,0.8223,3914.0,3913.0,1.85803132]
[1734280922959,0.8223,3914.0,3913.1,2.18630477]
[1734280923115,0.8223,3914.0,3913.0,0.8009]
[1734280923315,2.55503,3913.9,3912.8,1.05713132]
[1734280923544,2.55503,3913.9,3912.7,4.05622296]
[1734280923817,0.8223,3914.0,3912.8,0.87426316]
[1734280924157,2.555,3913.9,3912.8,0.87426316]
[1734280924311,2.55509,3913.8,3912.7,2.19819164]
[1734280924515,2.55478,3914.3,3912.7,2.19819164]
[1734280924516,3.37744,3913.7,3912.7,2.19819164]
[1734280924764,2.55523,3913.6,3912.4,1.85803132]
[1734280924925,0.52215504,3913.1,3912.5,2.18513048]
[1734280925130,0.52215504,3913.1,3912.6,0.87405219]
[1734280925339,0.52215504,3913.1,3912.4,0.8009]
[1734280925714,0.52215504,3913.1,3912.1,1.05713132]
[1734280925715,0.8223,3913.0,3912.1,1.05713132]
[1734280925961,0.8223,3913.0,3912.2,0.87383272]
[1734280926160,0.8223,3913.0,3912.1,0.81111653]
[1734280926511,0.8223,3913.0,3912.0,0.8009]
[1734280926713,0.52215504,3913.1,3912.4,2.19819164]
[1734280927028,0.50539301,3913.3,3912.6,3.35672]
[1734280927371,0.50539301,3913.3,3912.7,2.55575]
[1734280927529,0.50539301,3913.3,3912.6,0.8009]
[1734280927737,0.50539301,3913.3,3912.6,1.35639816]
[1734280929134,0.50539301,3913.3,3912.6,0.8009]
[1734280929865,0.8223,3913.2,3912.4,2.19819164]
[1734280930016,0.8223,3913.2,3912.0,5.19819164]
[1734280930211,0.8023,3913.2,3912.0,2.19819164]
[1734280930649,0.8023,3913.2,3912.1,2.55616]
[1734280930968,0.8023,3913.2,3912.2,3.77543516]
[1734280931463,0.8023,3913.2,3912.5,0.8009]
[1734280931634,0.50539301,3913.3,3912.5,0.8009]
[1734280933231,0.8223,3913.2,3912.5,0.8009]
[1734280933624,0.8223,3913.2,3912.4,2.55596]
[1734280933850,0.8223,3913.2,3912.4,3.26918952]
[1734280934780,0.8223,3913.2,3912.4,0.71322952]
[1734280935078,0.8223,3913.2,3912.0,5.19819164]
[1734280935250,0.8223,3913.2,3912.0,2.19819164]
[1734280936012,2.55552,3913.1,3912.0,2.19819164]
[1734280936217,0.7961,3913.0,3912.0,2.19819164]
[1734280936708,0.7961,3913.0,3911.9,2.55628]
[1734280936923,1.1818013,3913.0,3911.9,2.55628]
[1734280937125,0.7961,3913.0,3912.1,2.55614]
[1734280937324,0.7961,3913.6,3912.2,0.7524]
[1734280937619,0.7961,3913.6,3912.4,2.19819164]
[1734280938074,0.7961,3913.6,3912.5,0.02555592]
[1734280938823,0.7961,3913.6,3912.4,4.75411164]
[1734280939112,0.7961,3913.6,3912.5,0.58648835]
[1734280939469,1.31560307,3912.8,3911.9,6.30864]
[1734280939629,0.7961,3912.7,3911.9,2.55624]
[1734280940547,0.7961,3912.7,3911.7,2.55639]
[1734280940713,0.7961,3912.7,3911.6,2.19819164]
[1734280941457,0.7961,3912.7,3911.8,2.55634]
[1734280943215,0.7961,3912.7,3911.6,4.75464164]
[1734280943413,0.7961,3912.7,3911.6,2.19819164]
[1734280943717,2.68734031,3912.7,3911.6,2.19819164]
[1734280943912,0.7859,3912.3,3911.1,2.55676]
[1734280944114,0.7859,3912.2,3910.9,2.91532185]
[1734280944950,0.7859,3911.6,3910.9,2.55695]
[1734280946121,0.7859,3911.6,3911.3,2.55668]
[1734280946317,0.7859,3912.2,3911.5,2.55655]
[1734280946532,1.29248146,3912.2,3911.9,2.55629]
[1734280946734,0.7859,3913.1,3912.0,2.55622]
[1734280947354,0.7859,3913.1,3911.4,5.45385964]
[1734280947615,0.52201916,3912.3,3911.8,2.55636]
[1734280947815,0.52201916,3912.3,3910.9,3.61405132]
[1734280947816,0.7859,3912.2,3910.2,1.05713132]
[1734280948061,0.7859,3912.2,3910.4,0.7643]
[1734280948062,0.7859,3912.1,3910.4,0.7643]
[1734280948247,0.7859,3911.6,3910.0,0.12591692]
[1734280948449,2.55667,3911.4,3909.9,0.7643]
[1734280948650,0.7859,3911.2,3909.9,0.332206]
[1734280948832,2.55699,3910.9,3909.3,0.7643]
[1734280949039,0.7859,3910.8,3909.3,0.7643]
[1734280949382,0.5134313,3910.1,3909.0,5.52068164]
[1734280949679,0.7859,3910.0,3909.0,5.52068164]
[1734280949974,0.7859,3910.0,3909.1,0.55206816]
[1734280950619,0.7859,3910.0,3908.4,1.05713132]
[1734280950620,0.7859,3910.0,3908.7,2.55838]
[1734280950868,0.7859,3910.0,3908.4,2.55858]
[1734280951040,0.7859,3910.0,3908.6,2.19819164]
[1734280951365,0.7859,3910.0,3908.6,4.75664164]
[1734280952116,0.7859,3910.0,3909.0,2.55818]
[1734280952321,0.7859,3910.0,3909.1,3.255818]
[1734280952567,0.5149578,3909.9,3909.1,5.813918]
[1734280953064,0.7859,3910.0,3909.4,2.5579]
[1734280954168,0.7859,3911.1,3909.4,2.5579]
[1734280954402,0.7859,3911.0,3909.5,2.55783]
[1734280954674,0.7859,3911.0,3909.6,2.55776]
[1734280954994,0.7859,3911.0,3910.0,2.55749]
[1734280955137,0.52216823,3910.5,3910.0,2.55749]
[1734280955479,0.52216823,3910.5,3909.4,2.19819164]
[1734280955856,0.52216823,3910.5,3909.7,2.5577]
[1734280956221,0.52216823,3910.5,3909.4,2.19819164]
[1734280956574,0.52216823,3910.5,3909.5,0.21981916]
[1734280957072,0.7859,3911.0,3910.0,2.55751]
[1734280957639,0.49883895,3910.7,3909.7,3.0]
[1734280957843,0.7824,3910.6,3909.3,2.55795]
[1734280958043,0.7824,3910.6,3909.4,3.0]
[1734280958284,0.9105239,3910.6,3909.4,3.0]
[1734280958748,0.9105239,3910.6,3909.1,0.255818]
[1734280959078,0.7824,3910.6,3909.3,2.19819164]
[1734280959389,0.49883895,3910.7,3909.9,2.55756]
[1734280961995,0.49883895,3910.7,3910.0,2.55751]
[1734280962356,0.7506,3910.6,3910.0,2.55751]
[1734280963798,0.7506,3910.6,3910.1,2.55746]
[1734280964825,0.7506,3910.6,3909.7,3.00569164]
[1734280964957,0.7506,3910.6,3909.9,3.0]
[1734280965157,0.7506,3910.6,3910.3,2.55728]
[1734280966418,0.49883895,3910.7,3910.3,2.55728]
[1734280966593,0.49883895,3910.7,3909.5,3.0]
[1734280966764,0.49883895,3910.7,3909.6,3.0]
[1734280966964,0.49883895,3910.7,3909.6,0.38075]
[1734280967281,2.19819164,3912.5,3909.9,2.19819164]
[1734280967494,3.55,3911.9,3910.0,0.02557146]
[1734280967693,0.50997209,3910.7,3910.1,3.0]
[1734280967898,2.19819164,3912.9,3910.3,2.19819164]
[1734280968182,3.26578804,3913.0,3911.0,2.55687]
[1734280968183,0.52191879,3911.3,3911.0,2.55687]
[1734280968502,2.55608,3912.3,3911.0,2.55687]
[1734280969177,2.55595,3912.5,3911.0,2.55687]
[1734280969392,3.0,3912.4,3911.0,2.55687]
[1734280969564,0.7506,3912.3,3911.0,2.55687]
[1734280969763,0.7506,3912.1,3911.0,3.11312616]
[1734280970004,0.50105227,3911.4,3911.0,3.11312616]
[1734280970304,1.25165227,3911.4,3911.0,3.11312616]
[1734280970895,1.25165227,3911.4,3911.0,0.55625616]
[1734280971093,1.25165227,3911.4,3910.7,2.19819164]
[1734280971309,1.25165227,3911.4,3910.7,4.75526164]
[1734280971711,1.25165227,3911.4,3910.7,2.19819164]
[1734280971868,1.25165227,3911.4,3910.3,2.19819164]
[1734280972280,1.25165227,3911.4,3910.3,5.19819164]
[1734280972479,1.25165227,3911.4,3910.3,3.0]
[1734280972480,0.7506,3911.3,3910.3,3.0]
[1734280973120,0.7506,3911.3,3910.3,2.55732]
[1734280973817,0.7506,3911.3,3910.6,2.55714]
[1734280974774,0.7506,3911.3,3910.6,2.50714]
[1734280976011,0.7506,3911.3,3910.4,3.0]
[1734280976219,0.7506,3911.3,3910.3,2.55731]
[1734280977024,0.7506,3911.3,3910.0,2.5575]
[1734280977240,1.14802923,3911.2,3910.0,2.5575]
[1734280978634,0.7672,3911.1,3909.9,2.19819164]
[1734280978927,0.7672,3910.9,3909.6,3.0]
[1734280979244,0.7672,3910.6,3909.5,2.19819164]
[1734280979391,0.7672,3910.6,3909.0,1.178898]
[1734280979392,0.7672,3910.5,3909.1,2.19819164]
[1734280979736,0.7672,3909.9,3909.1,4.75631164]
[1734280980531,0.7672,3909.9,3909.1,2.55812]
[1734280980789,0.7672,3909.9,3909.0,2.19819164]
[1734280981351,0.7672,3909.9,3909.1,2.5581]
[1734280982343,0.7672,3909.9,3909.2,2.55805]
[1734280983101,0.7672,3909.9,3909.0,2.19819164]
[1734280983532,0.7672,3909.9,3909.0,5.19819164]
[1734280983760,0.7672,3909.9,3909.0,4.75637164]
[1734280985348,0.7672,3909.9,3909.1,0.87542042]
[1734280985729,0.89509623,3909.9,3909.1,0.87542042]
[1734280986333,0.89509623,3909.9,3909.0,2.19819164]
[1734280987049,3.45270623,3909.9,3908.8,3.0]
[1734280987245,3.45270623,3909.9,3908.9,0.87564331]
[1734280987246,0.7672,3909.8,3908.9,0.87564331]
[1734280987548,0.7672,3909.8,3909.0,0.87580213]
[1734280987863,0.34527062,3909.7,3908.7,4.05283685]
[1734280988006,0.34527062,3909.7,3908.8,5.1896]
[1734280988378,0.34527062,3909.7,3908.7,4.05283685]
[1734280988379,0.7672,3909.0,3908.5,3.0]
[1734280988581,0.7672,3909.0,3908.6,2.1906901]
[1734280988792,0.50008439,3909.1,3908.8,2.55831]
[1734280988939,0.50008439,3909.1,3908.9,3.06644077]
[1734280989134,0.50008439,3909.1,3909.0,0.87619302]
[1734280989335,0.7672,3909.4,3909.0,2.19056688]
[1734280989545,0.7672,3909.4,3908.9,0.87597084]
[1734280989837,0.7672,3909.4,3908.7,2.19819164]
[1734280989838,0.50325596,3909.3,3908.7,2.19819164]
[1734280990038,0.50325596,3909.3,3908.8,0.87655173]
[1734280990240,0.50325596,3909.3,3908.5,1.05283685]
[1734280990539,0.50325596,3909.3,3908.5,2.19167401]
[1734280990737,0.7672,3909.2,3908.5,2.19167401]
[1734280991338,0.7672,3909.2,3908.5,3.44972979]
[1734280991594,0.7672,3909.2,3908.6,2.19188051]
[1734280992383,0.7672,3909.2,3908.6,4.75031051]
[1734280992541,0.7672,3909.2,3908.7,2.19188051]
[1734280992890,0.50151671,3908.8,3908.7,2.19188051]
[1734280993041,0.50151671,3908.8,3908.7,3.26073094]
[1734280993380,0.50151671,3908.8,3908.7,2.19275539]
[1734280993566,0.50151671,3908.8,3908.5,3.24559224]
[1734280993879,0.50151671,3908.8,3908.6,0.8766696]
[1734280994085,0.50151671,3908.8,3908.3,3.25102849]
[1734280994252,0.7672,3908.7,3908.4,2.193698]
[1734280994457,0.7672,3908.7,3908.0,1.05283685]
[1734280995041,0.7672,3908.7,3908.0,3.24689042]
[1734280995280,0.7672,3908.7,3908.1,0.87762143]
[1734280995579,0.7672,3908.7,3907.9,2.19819164]
[1734280995782,0.7672,3908.7,3908.0,2.93277226]
[1734280995986,0.7672,3908.7,3908.1,2.19384188]
[1734280996146,0.7672,3908.7,3908.2,0.87753675]
[1734280996484,0.7672,3908.7,3908.0,0.73893038]
[1734280996785,0.7672,3908.7,3907.7,1.57925527]
[1734280996786,0.7672,3908.7,3907.7,1.05283685]
[1734280996959,0.7672,3908.7,3907.7,5.80529648]
[1734280997285,0.7672,3908.7,3907.8,2.19308967]
[1734280997872,0.7672,3908.7,3907.6,4.05283685]
[1734280997873,0.7672,3908.7,3907.6,1.05283685]
[1734280998074,0.7672,3908.7,3907.6,3.24561859]
[1734280998279,0.7672,3908.7,3907.6,7.01758251]
[1734280998461,0.7672,3908.7,3907.7,2.19278174]
[1734280998660,0.50637833,3907.9,3907.8,0.8771118]
[1734280998994,0.7672,3908.7,3907.8,0.8771118]
[1734280999198,0.7672,3908.7,3907.7,2.55902]
[1734280999379,0.51492373,3908.0,3907.7,2.55902]
[1734280999703,1.09974,3908.7,3907.7,2.55902]
[1734281000410,0.7949,3908.6,3907.5,3.0]
[1734281000590,0.7949,3908.6,3907.6,0.87656003]
[1734281000763,0.7949,3908.6,3907.6,3.43566003]
[1734281001107,0.7949,3908.6,3908.0,2.55882]
[1734281002327,0.7949,3908.6,3907.8,2.19819164]
[1734281002511,0.7949,3908.6,3907.8,6.07919649]
[1734281002675,0.51487256,3908.1,3907.8,6.07919649]
[1734281003290,0.51487256,3908.1,3907.8,2.19819164]
[1734281004212,0.7949,3908.0,3907.8,2.19819164]
[1734281005065,0.7949,3908.0,3907.4,2.19819164]
[1734281006026,0.51487256,3908.1,3907.8,4.75713164]
[1734281006317,0.51487256,3908.1,3907.8,2.19819164]
[1734281007907,0.51487256,3908.1,3907.6,3.0]
[1734281008078,0.51487256,3908.1,3907.7,0.77573216]
[1734281008411,0.7949,3908.0,3906.9,3.61234685]
[1734281008626,0.7949,3908.0,3906.7,2.37255527]
[1734281008627,0.7949,3908.0,3906.7,3.0]
[1734281008805,0.7949,3908.0,3907.1,3.0]
[1734281010008,0.7949,3907.9,3906.7,2.55969]
[1734281010307,0.7949,3907.7,3906.6,2.19819164]
[1734281010478,0.7949,3907.7,3906.5,2.55982]
[1734281011120,0.7949,3907.6,3906.5,2.55982]
[1734281011302,0.7949,3907.6,3906.3,4.75814164]
[1734281011642,0.7949,3907.2,3906.3,2.19819164]
[1734281013516,1.130315,3907.2,3906.3,2.19819164]
[1734281013921,0.7949,3907.2,3906.3,4.75814164]
[1734281014322,0.51629675,3906.5,3906.3,4.75814164]
[1734281014557,0.8247,3906.7,3905.3,4.05283685]
[1734281014706,0.8247,3906.4,3905.5,3.0]
[1734281014901,0.8247,3906.4,3905.4,2.56049]
[1734281015147,0.8247,3906.4,3905.4,3.07638543]
[1734281016156,0.8247,3906.4,3905.5,3.0]
[1734281016710,0.8247,3906.4,3905.4,3.07638543]
[1734281016955,0.8247,3906.4,3905.4,2.56049]
[1734281018457,0.8247,3906.4,3905.1,5.59846428]
[1734281018458,0.8247,3906.4,3905.5,2.19819164]
[1734281018667,0.8247,3906.4,3905.7,2.56033]
[1734281019173,0.8247,3906.4,3905.8,2.56026]
[1734281020050,0.8247,3906.4,3905.6,0.8128]
[1734281020378,0.25,3908.5,3905.9,2.19819164]
[1734281020379,0.8247,3906.7,3905.9,2.19819164]
[1734281021057,0.50727067,3906.6,3905.9,4.75837164]
[1734281021371,0.50727067,3906.6,3905.9,2.56018]
[1734281022331,0.50727067,3906.6,3905.7,3.30109916]
[1734281022332,0.50727067,3906.6,3906.1,2.56005]
[1734281022636,0.50727067,3906.6,3905.7,3.30109916]
[1734281022637,0.50727067,3906.6,3905.7,0.30109916]
[1734281022960,1.13139307,3906.5,3904.9,0.12709922]
[1734281023148,2.55999,3906.3,3904.7,0.8128]
[1734281023343,0.8247,3906.2,3904.8,0.08001517]
[1734281023557,0.8247,3906.2,3904.5,2.5611]
[1734281023743,0.8247,3906.2,3904.8,2.19819164]
[1734281023948,0.8247,3906.2,3905.2,2.19819164]
[1734281024138,0.8247,3906.2,3905.6,2.19819164]
[1734281024332,0.8247,3906.2,3905.2,2.19819164]
[1734281024630,0.52345835,3906.1,3905.6,2.19819164]
[1734281024836,0.52345835,3906.1,3905.2,5.19819164]
[1734281025036,0.52345835,3906.1,3905.3,0.08000407]
[1734281025262,0.52345835,3906.1,3905.2,2.19819164]
[1734281025490,0.8247,3906.0,3905.2,2.19819164]
[1734281026396,0.8247,3906.0,3905.3,0.0800066]
[1734281026545,0.8247,3906.0,3905.2,2.19819164]
[1734281026744,0.8247,3906.0,3905.3,0.29982563]
[1734281026945,0.8247,3906.0,3905.3,0.21981916]
[1734281028594,0.52345835,3906.1,3905.3,0.21981916]
[1734281028744,0.8247,3906.4,3906.0,2.19819164]
[1734281028948,0.8247,3906.4,3906.1,0.21981916]
[1734281029774,0.8247,3907.6,3906.1,0.21981916]
[1734281030087,0.51876429,3906.9,3906.4,2.19819164]
[1734281032091,0.8247,3907.1,3906.4,2.19819164]
[1734281032273,0.8247,3907.1,3906.5,0.07998223]
[1734281032583,0.8247,3907.1,3906.4,2.19819164]
[1734281032584,0.8247,3907.1,3906.6,0.64507162]
[1734281032743,0.8247,3907.1,3906.6,0.56508939]
[1734281033357,1.34750954,3907.1,3906.6,0.56508939]
[1734281033560,1.34750954,3907.1,3906.7,0.07998012]
[1734281033773,1.34750954,3907.1,3906.6,0.56508939]
[1734281033978,1.34750954,3907.1,3906.7,0.2763281]
[1734281034295,1.34750954,3907.1,3906.8,0.07998039]
[1734281034296,1.34442971,3907.1,3906.8,0.07998039]
[1734281034501,1.34442971,3907.1,3906.7,0.2763281]
[1734281034804,1.34442971,3907.1,3906.1,3.0]
[1734281035121,3.08224954,3907.1,3906.2,0.07998082]
[1734281035398,3.08224954,3907.1,3906.3,0.07998082]
[1734281035609,3.08224954,3907.1,3905.6,5.19819164]
[1734281035758,3.08224954,3907.1,3905.7,0.0799943]
[1734281035955,3.08224954,3907.1,3905.8,0.69041289]
[1734281036157,3.08224954,3907.1,3905.9,0.0799943]
[1734281036559,2.55952,3907.0,3905.9,0.0799943]
[1734281036980,2.55952,3907.0,3906.0,0.07999883]
[1734281037178,0.7615,3906.9,3905.8,0.61041859]
[1734281037407,0.50594872,3906.4,3905.9,0.07999891]
[1734281037592,0.50594872,3906.4,3906.0,0.07999891]
[1734281037910,0.50594872,3906.4,3906.1,0.07999891]
[1734281038119,0.50594872,3906.4,3905.6,2.19819164]
[1734281038268,0.50594872,3906.4,3905.7,0.07999857]
[1734281038470,0.7615,3906.3,3905.8,0.07999857]
[1734281038693,0.7615,3906.3,3905.9,0.07999857]
[1734281038877,0.7615,3906.3,3906.0,0.07999857]
[1734281039174,0.7615,3906.3,3906.1,0.07999857]
[1734281039506,0.7615,3906.3,3906.2,0.07999857]
[1734281040099,0.7615,3906.3,3906.2,0.07999859]
[1734281040459,0.7615,3906.3,3906.2,0.07999856]
[1734281041348,0.7615,3906.3,3905.6,2.19819164]
[1734281041501,0.7615,3906.3,3905.7,0.07999856]
[1734281041705,0.7615,3906.3,3905.8,0.07999856]
[1734281042004,0.7615,3906.3,3905.9,0.07999856]
[1734281042208,0.7615,3906.3,3906.0,0.07999856]
[1734281042506,0.7615,3906.3,3906.1,0.07999856]
[1734281042810,1.14422287,3906.3,3906.2,0.07999856]
[1734281043006,1.14422287,3906.3,3905.2,2.19819164]
[1734281043007,0.7615,3906.3,3905.2,2.19819164]
[1734281043208,0.7615,3906.3,3905.6,2.19819164]
[1734281044453,0.7615,3906.3,3905.2,2.19819164]
[1734281044664,2.56005,3906.2,3905.2,2.19819164]
[1734281044969,0.7948,3906.1,3905.2,2.19819164]
[1734281045142,0.7948,3905.9,3905.2,2.19819164]
[1734281045345,0.335497,3905.8,3905.2,2.19819164]
[1734281045822,0.7948,3905.9,3905.2,2.19819164]
[1734281047136,0.51713058,3905.3,3905.2,2.19819164]
[1734281047364,0.7948,3905.9,3905.3,2.56059]
[1734281047564,0.7948,3905.9,3905.6,2.19819164]
[1734281047771,0.7948,3906.8,3905.6,2.19819164]
[1734281047970,0.7948,3906.8,3906.1,2.19819164]
[1734281048172,0.50523102,3906.4,3906.1,2.19819164]
[1734281050665,0.7948,3906.8,3906.1,4.75825164]
[1734281051026,0.7948,3906.8,3906.5,2.19819164]
[1734281051669,0.7948,3906.8,3905.8,4.05283685]
[1734281051980,0.50574311,3906.6,3905.9,2.19819164]
[1734281052809,0.7948,3906.5,3905.9,2.19819164]
[1734281053472,0.50574311,3906.6,3905.9,4.75840164]
[1734281053670,0.50574311,3906.6,3906.3,2.19819164]
[1734281056919,0.50574311,3906.6,3905.9,6.57273849]
[1734281057209,0.50574311,3906.6,3906.0,2.20170765]
[1734281057410,0.50574311,3906.6,3906.1,2.20170765]
[1734281057710,0.50574311,3906.6,3906.2,0.88068306]
[1734281057866,0.50574311,3906.6,3905.9,3.25102849]
[1734281058208,0.50574311,3906.6,3906.0,2.2021769]
[1734281058504,0.50574311,3906.6,3905.9,3.25102849]
[1734281058505,0.50574311,3906.6,3906.1,0.88087076]
[1734281058807,0.50574311,3906.6,3906.2,0.88087076]
[1734281059100,0.50574311,3906.6,3906.3,0.88082173]
[1734281059302,0.50574311,3906.6,3906.1,1.05283685]
[1734281059511,0.50574311,3906.6,3906.2,2.20229183]
[1734281059716,0.50574311,3906.6,3905.9,1.05283685]
[1734281059869,0.50574311,3906.6,3906.0,0.88105485]
[1734281060064,0.50574311,3906.6,3906.1,2.20263713]
[1734281060268,0.50574311,3906.6,3905.9,1.05283685]
[1734281060518,0.89175542,3906.6,3906.0,0.8811326]
[1734281060726,0.753,3906.5,3906.0,0.8811326]
[1734281060928,0.753,3906.5,3905.8,2.19819164]
[1734281061222,0.753,3906.5,3905.9,2.20302333]
[1734281061366,0.753,3906.5,3906.0,0.88120933]
[1734281061564,0.753,3906.5,3905.8,2.19819164]
[1734281061895,0.753,3906.5,3905.9,2.20299747]
[1734281062101,0.753,3906.5,3906.0,0.88119899]
[1734281062480,0.753,3906.5,3905.8,6.55038687]
[1734281062481,0.753,3906.5,3906.1,0.88119899]
[1734281062780,0.753,3906.5,3905.8,6.55038687]
[1734281062983,0.753,3906.5,3905.9,2.20280861]
[1734281063195,0.753,3906.5,3906.0,0.88112344]
[1734281063408,0.753,3906.5,3906.1,0.88115224]
[1734281063574,0.753,3906.5,3906.2,2.20269228]
[1734281063778,0.753,3906.5,3906.0,1.05283685]
[1734281063977,0.753,3906.5,3906.1,2.20262025]
[1734281064314,0.7791,3907.5,3906.2,5.47924839]
[1734281064481,0.7791,3907.5,3906.7,2.19819164]
[1734281064813,0.7791,3907.5,3907.0,2.19819164]
[1734281064965,0.7791,3907.5,3907.1,0.88071327]
[1734281065366,0.7791,3908.2,3907.1,0.88071327]
[1734281065614,1.21901469,3908.2,3907.1,0.88071327]
[1734281065826,1.21901469,3908.2,3907.8,2.19819164]
[1734281065827,0.7791,3908.2,3907.8,2.19819164]
[1734281066117,0.7791,3908.9,3907.8,2.19819164]
[1734281066281,0.7791,3908.9,3908.2,2.19819164]
[1734281066694,0.51561275,3908.3,3908.2,2.19819164]
[1734281066895,0.7791,3908.9,3908.2,2.4954808]
[1734281067111,0.7791,3908.9,3908.2,2.19819164]
[1734281068466,0.51650904,3908.6,3908.2,2.19819164]
[1734281070184,0.51650904,3908.6,3908.2,4.75690164]
[1734281070387,0.51650904,3908.6,3908.3,2.55864]
[1734281071434,0.51650904,3908.6,3908.2,2.19819164]
[1734281071638,0.51650904,3908.6,3908.3,0.51981916]
[1734281071801,0.51650904,3908.6,3908.2,2.19819164]
[1734281071998,0.51650904,3908.6,3907.8,2.19819164]
[1734281072198,0.7791,3908.5,3907.8,2.19819164]
[1734281072725,0.7791,3908.5,3908.2,2.19819164]
[1734281072930,0.51650904,3908.6,3908.2,2.19819164]
[1734281073293,0.51650904,3908.6,3907.8,2.19819164]
[1734281073498,0.51650904,3908.6,3907.8,2.7954808]
[1734281075551,0.51650904,3908.6,3907.8,5.3544408]
[1734281076339,0.51650904,3908.6,3907.8,2.7954808]
[1734281078553,0.51650904,3908.6,3907.8,2.19819164]
[1734281078718,0.8202,3908.5,3907.8,2.19819164]
[1734281082160,2.55866,3908.3,3907.8,2.19819164]
[1734281082458,0.8202,3908.2,3907.4,2.19819164]
[1734281084433,0.8202,3908.7,3907.8,2.19819164]
[1734281086217,0.51761418,3908.0,3907.4,5.19819164]